bitfinex-derivatives/quotes_ETHF0:USTF0_20251031
["timestamp","ask_amount","ask_price","bid_price","bid_amount"]
[1761932785283,0.2301,3825.1,3825.0,9.34211411]
[1761932785773,0.70095,3825.1,3825.0,0.00211411]
[1761932787281,0.47083,3825.3,3825.0,0.00211411]
[1761932787582,0.47084,3825.2,3825.0,0.00211411]
[1761932787875,4.51578,3825.6,3825.0,0.00211411]
[1761932788073,0.47085,3825.1,3825.0,0.00211411]
[1761932788284,0.70095,3825.1,3825.0,0.00211411]
[1761932789172,0.83202,3824.5,3824.4,12.5488]
[1761932789367,0.3611,3824.5,3824.4,12.5488]
[1761932789572,0.83202,3824.5,3824.4,12.5488]
[1761932790284,0.83202,3824.5,3824.4,12.55142395]
[1761932790778,0.83202,3824.5,3824.4,9.34362395]
[1761932791183,0.83202,3824.5,3824.4,0.00262395]
[1761932791569,0.3611,3824.5,3824.4,0.00262395]
[1761932791774,1.30818,3825.0,3824.5,0.47092]
[1761932791775,0.47089,3824.9,3824.5,0.47092]
[1761932791983,0.4709,3824.8,3824.4,3.68135395]
[1761932792383,0.131,3824.5,3824.4,0.00262395]
[1761932792683,0.131,3824.5,3824.4,0.47356395]
[1761932792874,0.131,3824.5,3824.4,0.00262395]
[1761932793079,0.60192,3824.5,3824.4,0.00262395]
[1761932793376,0.83202,3824.5,3824.4,0.00262395]
[1761932794384,0.70107,3824.1,3824.0,3.2078]
[1761932794777,0.60193,3824.5,3824.0,3.2078]
[1761932794973,0.60192,3824.5,3824.0,3.2078]
[1761932795178,0.60193,3824.5,3824.1,0.47097]
[1761932795377,0.131,3824.5,3824.4,0.1044]
[1761932796384,0.70106,3824.2,3824.1,0.00291508]
[1761932796781,0.47095,3824.3,3824.1,0.00291508]
[1761932797091,0.70106,3824.2,3824.1,0.00291508]
[1761932798985,0.131,3824.5,3824.4,0.57534]
[1761932799184,0.2301,3824.2,3824.1,12.55271508]
[1761932799383,0.70106,3824.2,3824.1,12.55271508]
[1761932799584,0.70106,3824.2,3824.1,9.34491508]
[1761932800279,0.47096,3824.3,3824.1,9.34491508]
[1761932800583,0.69296,3824.2,3824.1,9.34491508]
[1761932801978,0.47096,3824.2,3824.1,9.34491508]
[1761932802376,0.69296,3824.2,3824.1,9.34491508]
[1761932802585,0.131,3824.5,3824.1,9.44941508]
[1761932802780,0.47096,3824.2,3824.1,9.44941508]
[1761932803888,0.131,3824.5,3824.1,9.34491508]
[1761932804075,3.67871,3824.6,3824.5,0.1045]
[1761932804280,0.60423,3824.5,3824.2,0.47096]
[1761932804485,0.1333,3824.5,3824.4,0.1045]
[1761932804789,3.2078,3824.6,3824.5,0.1045]
[1761932804985,0.131,3825.0,3824.5,0.1045]
[1761932805192,0.59215637,3824.9,3824.8,0.1045]
[1761932805383,1.06302637,3824.9,3824.8,0.1045]
[1761932805885,0.59215637,3824.9,3824.6,9.341]
[1761932806086,1.06304637,3824.8,3824.6,9.8119]
[1761932806387,0.59215637,3824.7,3824.6,9.9164]
[1761932806578,0.59530308,3824.9,3824.8,0.1045]
[1761932806982,1.06617308,3824.9,3824.8,0.1045]
[1761932807183,0.59530308,3824.9,3824.8,0.1045]
[1761932807378,0.59530308,3824.9,3824.8,0.57539]
[1761932807586,0.1333,3825.5,3824.9,1.17719]
[1761932807789,0.6041,3825.5,3825.4,3.2078]
[1761932807980,0.3553,3825.5,3825.4,9.34]
[1761932808183,0.8261,3825.5,3825.4,9.34]
[1761932808385,0.1333,3825.5,3825.0,3.2078]
[1761932808693,0.69282,3825.3,3825.2,9.34]
[1761932808886,0.47082,3825.4,3825.2,9.34]
[1761932809183,0.6041,3825.5,3825.2,9.34]
[1761932809384,0.47084,3825.2,3825.0,3.2078]
[1761932809585,0.1333,3825.5,3825.1,9.34]
[1761932809785,0.6041,3825.5,3825.1,9.81085]
[1761932809980,0.1333,3825.5,3825.1,9.34]
[1761932810190,0.47081,3825.4,3825.1,9.34]
[1761932810488,0.1333,3825.5,3825.4,0.47081]
[1761932810690,0.1333,3825.5,3825.2,0.47084]
[1761932810987,0.1333,3825.5,3825.1,9.34]
[1761932810988,0.1333,3825.5,3825.4,3.67861]
[1761932811385,0.1333,3825.5,3825.4,3.2078]
[1761932812289,0.1333,3825.5,3825.4,3.67861]
[1761932812481,0.1333,3825.5,3825.4,3.2078]
[1761932812683,0.1333,3825.5,3824.9,3.2078]
[1761932812684,0.1333,3825.0,3824.9,3.2078]
[1761932812883,0.47087,3824.9,3824.5,3.2078]
[1761932813180,0.4709,3824.7,3824.5,3.2078]
[1761932813380,0.4709,3824.7,3824.6,9.338]
[1761932814081,0.1333,3825.0,3824.6,9.338]
[1761932814283,0.47088,3824.9,3824.7,0.4709]
[1761932814594,0.4709,3824.7,3824.6,9.338]
[1761932814893,0.47087,3824.9,3824.7,0.4709]
[1761932815293,0.1333,3825.0,3824.6,9.338]
[1761932815695,0.4709,3824.7,3824.6,9.338]
[1761932816197,0.47091,3824.6,3824.5,3.2078]
[1761932816382,0.47091,3824.6,3824.5,12.5448]
[1761932816586,0.4709,3824.8,3824.5,12.5448]
[1761932816790,0.4709,3824.7,3824.5,13.01572]
[1761932817194,0.1333,3825.0,3824.6,0.47091]
[1761932817396,0.47089,3824.8,3824.6,0.47091]
[1761932817593,0.4709,3824.7,3824.5,12.5448]
[1761932817795,0.1333,3825.0,3824.5,12.5448]
[1761932817995,0.4709,3824.8,3824.5,12.5448]
[1761932818190,0.47091,3824.7,3824.5,12.5448]
[1761932818395,0.47091,3824.6,3824.5,13.01572]
[1761932818595,0.47091,3824.6,3824.5,12.5448]
[1761932819398,0.47091,3824.6,3824.5,12.5438]
[1761932819700,0.47089,3824.8,3824.5,3.67872]
[1761932819895,1.06549444,3824.7,3824.6,9.336]
[1761932820197,1.28749444,3824.7,3824.6,9.336]
[1761932821197,0.59459444,3824.7,3824.6,9.336]
[1761932821897,0.59459444,3824.7,3824.6,9.80691]
[1761932822403,0.1333,3825.0,3824.9,0.47087]
[1761932822603,0.1333,3825.0,3824.9,3.67867]
[1761932822903,0.1333,3825.0,3824.9,11.67867]
[1761932823299,0.1333,3825.5,3825.4,0.47081]
[1761932823495,0.1333,3825.5,3825.4,13.01361]
[1761932823801,0.131,3826.0,3825.9,0.47075]
[1761932823990,0.131,3826.0,3825.9,13.01355]
[1761932824998,0.60174,3826.0,3825.9,3.2078]
[1761932825201,0.60174,3826.0,3825.9,12.5418]
[1761932825798,0.131,3826.0,3825.9,13.01255]
[1761932826294,0.131,3826.0,3825.9,13.22073068]
[1761932826699,0.131,3826.0,3825.9,21.22073068]
[1761932827007,0.131,3826.0,3825.9,13.01255]
[1761932827303,0.131,3826.0,3825.9,12.5398]
[1761932828000,0.69279,3825.6,3825.5,3.2078]
[1761932828203,0.47085,3825.1,3825.0,3.2078]
[1761932828504,0.1333,3825.5,3824.1,13.73532508]
[1761932828505,0.47091,3824.7,3824.6,3.2078]
[1761932828703,0.47091,3824.7,3824.6,12.5398]
[1761932828891,0.1333,3825.0,3824.8,0.47089]
[1761932829099,0.60416,3825.0,3824.8,0.47087]
[1761932829293,0.1333,3825.0,3824.8,0.47087]
[1761932831503,0.1333,3825.0,3824.8,8.47087]
[1761932832297,0.1333,3825.0,3824.6,3.2078]
[1761932832701,0.1333,3825.0,3824.8,0.47088]
[1761932833102,0.1333,3825.0,3824.8,0.47089]
[1761932833708,0.1333,3825.0,3824.9,0.47087]
[1761932834309,0.1333,3825.0,3824.6,3.2078]
[1761932834508,0.1333,3825.0,3824.2,3.2078]
[1761932834509,0.1359,3824.4,3824.2,3.2078]
[1761932834696,0.1359,3824.4,3824.3,9.80095]
[1761932835309,0.70655,3824.3,3824.2,3.2078]
[1761932835610,0.2356,3824.2,3823.9,7.087]
[1761932835814,0.1359,3824.4,3824.2,0.47096]
[1761932836012,0.1359,3824.4,3824.3,9.33]
[1761932836214,0.72595381,3824.4,3824.3,9.33]
[1761932836418,0.2356,3824.2,3824.0,0.47098]
[1761932836603,0.1359,3824.4,3824.3,9.33]
[1761932837101,0.1359,3824.4,3824.3,12.5378]
[1761932837302,0.1333,3825.0,3824.9,0.47087]
[1761932837504,0.1333,3825.0,3824.9,12.5378]
[1761932837711,0.1333,3825.0,3824.9,3.2078]
[1761932838015,0.1333,3825.0,3824.9,12.5378]
[1761932838802,0.72317324,3825.0,3824.9,12.5368]
[1761932839409,0.1333,3825.0,3824.9,12.5368]
[1761932840609,0.3689,3825.0,3824.9,12.5368]
[1761932841010,0.3689,3825.0,3824.9,9.329]
[1761932841313,0.72314688,3825.0,3824.5,3.2078]
[1761932841519,0.47089,3824.8,3824.6,9.329]
[1761932841814,0.2163,3824.7,3824.6,9.329]
[1761932842114,0.1333,3825.0,3824.6,9.329]
[1761932842419,0.47089,3824.8,3824.6,9.329]
[1761932842617,3.67869,3824.8,3824.6,9.329]
[1761932842822,0.806188,3824.7,3824.6,9.329]
[1761932843620,0.1351,3824.4,3824.1,0.00291508]
[1761932843922,0.1351,3824.4,3824.2,9.328]
[1761932844124,0.1351,3824.4,3824.2,9.79896]
[1761932844620,0.1351,3824.4,3824.1,0.00291508]
[1761932844621,0.68726,3824.2,3824.1,0.00291508]
[1761932844919,0.1351,3823.8,3823.2,3.2078]
[1761932845127,0.47106,3823.4,3823.2,3.2078]
[1761932845314,0.47107,3823.3,3823.2,3.2078]
[1761932845509,0.1351,3823.2,3823.0,2.767]
[1761932845720,0.13825677,3823.2,3823.0,3.24139198]
[1761932846119,0.13825677,3823.2,3823.0,2.77029198]
[1761932846316,0.13825677,3823.2,3823.1,0.47109]
[1761932847419,0.13825677,3823.2,3823.0,2.77029198]
[1761932847619,0.60934677,3823.2,3823.0,2.77029198]
[1761932847817,0.13825677,3823.2,3823.0,2.77029198]
[1761932848212,0.13825677,3823.2,3823.1,0.4711]
[1761932850022,0.1351,3823.8,3823.7,0.47102]
[1761932850231,0.1351,3823.8,3823.7,9.329]
[1761932850530,0.2163,3823.6,3823.5,3.2078]
[1761932850821,0.68733,3823.6,3823.5,3.2078]
[1761932851023,0.00239143,3823.6,3823.5,3.67885]
[1761932851230,0.47342143,3823.6,3823.5,3.2078]
[1761932851429,0.47342143,3823.6,3823.5,3.67885]
[1761932851430,0.00239143,3823.6,3823.5,3.67885]
[1761932851928,0.1351,3823.8,3823.5,3.2078]
[1761932852132,0.1351,3823.8,3823.7,0.47102]
[1761932852331,0.1351,3823.8,3823.5,3.2078]
[1761932852629,0.1351,3823.8,3823.6,9.329]
[1761932852821,0.1351,3823.8,3823.7,0.47102]
[1761932853019,0.13770942,3823.8,3823.7,0.47102]
[1761932854819,0.13770942,3823.8,3823.7,9.79902]
[1761932855021,0.60871942,3823.8,3823.7,9.328]
[1761932855630,0.60871942,3823.8,3823.7,9.79902]
[1761932856030,0.13770942,3823.8,3823.7,9.79902]
[1761932856328,0.60871942,3823.8,3823.5,3.2078]
[1761932856531,0.47103,3823.6,3823.5,3.2078]
[1761932856727,0.60872942,3823.8,3823.5,12.5358]
[1761932856924,0.13770942,3823.8,3823.7,0.47102]
[1761932859725,0.13770942,3823.8,3823.5,3.2078]
[1761932859925,0.13770942,3823.8,3823.6,9.328]
[1761932860525,0.13770942,3823.8,3823.7,0.47102]
[1761932860727,0.1351,3824.4,3823.6,9.328]
[1761932860931,0.1429,3823.8,3823.7,0.47102]
[1761932861134,0.1429,3823.8,3823.7,3.67882]
[1761932861337,0.1429,3823.8,3823.7,13.00582]
[1761932861726,0.14583099,3823.8,3823.7,13.00582]
[1761932866534,0.14583099,3823.8,3823.7,3.67882]
[1761932866738,0.14583099,3823.8,3823.7,13.00382]
[1761932867540,0.60603,3824.4,3824.3,0.47095]
[1761932867740,1.19599873,3824.4,3824.3,9.79595]
[1761932868036,0.72506873,3824.4,3824.3,9.79595]
[1761932868443,0.72739331,3824.4,3824.3,9.79595]
[1761932868746,0.1333,3825.0,3824.9,0.47087]
[1761932869530,0.13583053,3825.0,3824.9,0.47087]
[1761932875940,0.60669053,3825.0,3824.9,0.47087]
[1761932876134,0.37263053,3825.0,3824.9,0.47087]
[1761932876533,0.2368,3824.9,3824.8,9.325]
[1761932876734,0.70767,3824.9,3824.8,9.79588]
[1761932877034,0.70767,3824.9,3824.8,9.325]
[1761932877638,9.2973185,3824.9,3824.8,8.7196955]
[1761932877943,0.8264485,3824.9,3824.8,8.7196955]
[1761932878145,1.2973185,3824.9,3824.8,8.7196955]
[1761932878843,0.1429,3824.0,3823.9,3.2078]
[1761932879141,0.3797,3824.0,3823.9,12.5288]
[1761932879444,0.1429,3824.0,3823.9,12.9998]
[1761932880429,0.13583053,3825.0,3824.0,1.17747]
[1761932880634,0.1429,3826.2,3825.4,0.47081]
[1761932880831,3.3507,3826.2,3825.4,9.79181]
[1761932881037,0.3797,3825.5,3825.4,9.321]
[1761932881242,0.2368,3825.3,3825.2,9.321]
[1761932881646,0.70962466,3825.3,3825.2,9.321]
[1761932882446,0.23880466,3825.3,3825.2,9.79184]
[1761932882744,0.23880466,3825.3,3825.2,9.321]
[1761932883146,1.29941631,3825.3,3825.2,9.321]
[1761932883937,0.82859631,3825.3,3825.2,9.321]
[1761932884140,1.29941631,3825.3,3825.2,9.321]
[1761932884344,0.82859631,3825.3,3825.2,9.321]
[1761932884747,1.29941631,3825.3,3825.2,9.321]
[1761932885050,0.82859631,3825.3,3825.2,9.321]
[1761932885249,1.29941631,3825.3,3825.2,9.321]
[1761932886348,0.59179631,3825.3,3825.2,9.321]
[1761932886558,0.00200466,3825.3,3825.2,12.99964]
[1761932886852,0.1429,3826.2,3825.8,0.47076]
[1761932887037,0.47074,3826.0,3825.9,9.319]
[1761932887351,0.61362,3826.2,3825.9,9.319]
[1761932887547,0.58959742,3826.1,3825.9,9.319]
[1761932887852,0.58959742,3826.0,3825.9,9.79304697]
[1761932888344,0.61549187,3826.2,3825.9,9.79303697]
[1761932888545,0.58944356,3826.1,3825.9,9.79303697]
[1761932888847,1.29698356,3826.0,3825.9,0.00329697]
[1761932889258,0.47087,3824.9,3824.8,3.2078]
[1761932889455,0.2368,3824.9,3824.8,8.247]
[1761932889652,0.70767,3824.9,3824.8,8.247]
[1761932890256,0.2368,3824.9,3824.8,8.71985197]
[1761932890445,0.70767,3824.9,3824.8,8.24896197]
[1761932890644,0.82652431,3824.9,3824.8,8.24896197]
[1761932890845,0.82652431,3824.9,3824.8,8.71985197]
[1761932890846,0.58972431,3824.9,3824.8,8.71985197]
[1761932891043,0.58971268,3824.9,3824.8,8.71985197]
[1761932891263,1.06058268,3824.9,3824.8,8.24896197]
[1761932891451,0.58971268,3824.9,3824.8,8.24896197]
[1761932891651,0.1429,3825.0,3824.8,11.45676197]
[1761932891950,0.47087,3824.9,3824.8,11.45676197]
[1761932892143,1.29136728,3824.9,3824.8,8.24896197]
[1761932892348,1.29136728,3824.9,3824.8,0.00196197]
[1761932892857,0.83113,3824.4,3824.3,9.317]
[1761932893155,1.42092728,3824.4,3824.3,9.317]
[1761932893841,1.42092728,3824.4,3824.3,9.31956862]
[1761932894154,1.42093728,3824.4,3824.3,9.31956862]
[1761932895949,0.71929728,3824.4,3824.3,9.79051862]
[1761932896150,0.1295,3824.4,3824.3,9.31956862]
[1761932896339,1.19227693,3824.4,3824.3,9.31956862]
[1761932896853,1.42297693,3824.4,3824.3,9.31956862]
[1761932897846,0.72134693,3824.4,3824.3,9.31956862]
[1761932898048,0.1295,3824.4,3824.3,9.31956862]
[1761932898548,1.1923665,3824.4,3824.3,9.31956862]
[1761932899242,0.1295,3824.4,3824.3,9.31956862]
[1761932899643,0.60043,3824.4,3824.3,9.31956862]
[1761932900551,4.62410033,3824.4,3824.3,0.00256862]
[1761932900756,0.1411,3823.2,3822.7,3.2078]
[1761932900948,0.1411,3822.6,3822.3,3.2078]
[1761932901153,0.47117,3822.5,3822.0,0.47122]
[1761932901355,0.47117,3822.5,3821.9,3.2078]
[1761932901356,0.1411,3822.6,3822.1,9.316]
[1761932901650,0.1411,3822.6,3822.1,9.31903995]
[1761932901857,0.14351484,3822.6,3822.1,9.31903995]
[1761932902155,0.47117,3822.5,3822.2,0.47121]
[1761932902349,0.14351484,3822.6,3822.4,0.47117]
[1761932902551,0.14351484,3822.6,3822.5,9.316]
[1761932903552,0.36751484,3822.6,3822.5,9.316]
[1761932903860,0.47121,3822.3,3822.1,0.00303995]
[1761932904048,0.47121,3822.3,3822.2,9.316]
[1761932904849,3.35131484,3822.6,3822.3,0.47119]
[1761932905054,3.35131484,3822.6,3822.2,9.78721]
[1761932905255,0.14351484,3822.6,3822.2,9.316]
[1761932905456,0.61467484,3822.6,3822.2,9.7872]
[1761932905858,0.47117,3822.5,3822.2,9.316]
[1761932906050,0.14351484,3822.6,3822.2,9.316]
[1761932906355,0.47119,3822.4,3822.2,9.316]
[1761932906550,0.47117,3822.5,3822.2,9.7872]
[1761932907061,0.14351484,3822.6,3822.4,0.47117]
[1761932907353,0.14351484,3822.6,3822.2,9.7872]
[1761932907857,0.69521,3822.2,3822.1,0.00303995]
[1761932909062,0.224,3822.2,3822.1,0.00303995]
[1761932909258,0.69521,3822.2,3822.1,0.00303995]
[1761932909458,3.90301,3822.2,3822.1,0.00303995]
[1761932910262,0.69524,3821.9,3821.8,0.42007559]
[1761932911267,0.61242,3821.4,3821.1,5.941]
[1761932911567,0.69533,3821.2,3821.1,0.00217993]
[1761932911957,3.2078,3821.7,3821.6,0.0239]
[1761932912162,3.2078,3822.1,3821.6,9.317]
[1761932912363,0.89133559,3821.8,3821.6,9.317]
[1761932912561,0.1411,3821.4,3821.1,0.00217993]
[1761932912757,0.1411,3821.4,3821.2,4.326]
[1761932912952,0.42007559,3821.8,3821.6,0.0239]
[1761932913156,0.42007559,3821.8,3821.2,4.326]
[1761932913157,0.42007559,3821.8,3821.7,9.81217]
[1761932913455,3.2078,3822.8,3821.7,9.3409]
[1761932913778,0.00241484,3822.6,3822.5,0.0239]
[1761932914266,0.1411,3823.8,3822.4,12.99598]
[1761932914462,0.47104,3823.6,3823.1,0.47109]
[1761932914661,0.47104,3823.6,3823.1,9.78809]
[1761932914959,0.1411,3823.8,3823.4,0.47105]
[1761932915159,0.14424384,3823.8,3823.1,9.317]
[1761932915770,0.61525384,3823.8,3823.4,0.47106]
[1761932915964,0.14424384,3823.8,3823.5,0.47104]
[1761932916164,0.14424384,3823.8,3823.6,9.317]
[1761932916467,0.14424384,3823.8,3823.6,9.78803]
[1761932916656,0.14424384,3823.8,3823.6,9.317]
[1761932916852,0.14424384,3823.8,3823.6,9.78803]
[1761932917566,0.00314384,3823.8,3823.7,0.0215]
[1761932918371,0.14424384,3823.8,3823.6,9.317]
[1761932918557,0.61525384,3823.8,3823.6,9.317]
[1761932918966,0.14424384,3823.8,3823.4,3.67885]
[1761932919161,0.47103,3823.7,3823.5,9.316]
[1761932919363,0.14424384,3823.8,3823.5,9.316]
[1761932919662,0.61525384,3823.8,3823.5,9.316]
[1761932920064,0.47104,3823.6,3823.4,3.2078]
[1761932920267,0.47104,3823.6,3823.5,9.316]
[1761932920565,0.47104,3823.6,3823.4,3.2078]
[1761932920761,0.14424384,3823.8,3823.2,9.315]
[1761932920969,0.47103,3823.6,3823.3,0.47106]
[1761932921262,0.14424384,3823.8,3823.7,0.0212]
[1761932921464,0.1411,3824.4,3823.7,9.315]
[1761932921669,0.1379,3823.8,3823.7,9.315]
[1761932922264,0.1379,3823.8,3823.0,3.2078]
[1761932922463,0.47104,3823.6,3823.3,0.47107]
[1761932922873,0.14087413,3823.8,3823.3,9.314]
[1761932923168,0.00297413,3823.8,3823.7,0.1623]
[1761932923478,0.00297413,3823.8,3823.7,9.94732]
[1761932923663,0.1411,3824.4,3824.2,0.47096]
[1761932923963,0.1411,3824.4,3824.2,9.314]
[1761932924366,0.47095,3824.3,3824.2,9.314]
[1761932924567,0.0027063,3824.3,3824.2,9.78714005]
[1761932924770,0.0027063,3824.3,3824.2,9.94944005]
[1761932925069,0.0027063,3824.3,3824.2,9.47848005]
[1761932925467,0.4736563,3824.3,3824.2,9.47848005]
[1761932925771,0.0027063,3824.3,3824.2,9.31618005]
[1761932926379,0.0027063,3824.3,3824.2,9.47848005]
[1761932926563,0.4736563,3824.3,3824.2,9.47848005]
[1761932927269,0.0027063,3824.3,3824.2,9.47848005]
[1761932927472,0.4736563,3824.3,3824.2,9.47848005]
[1761932927674,12.50046266,3824.3,3824.2,0.00218005]
[1761932930466,4.50046266,3824.3,3824.2,0.00218005]
[1761932930769,4.27556266,3824.3,3824.2,0.16448005]
[1761932931372,0.59681266,3824.3,3824.2,0.16448005]
[1761932931576,0.0027063,3824.3,3824.2,0.63544005]
[1761932932065,0.0027063,3824.3,3824.2,0.16448005]
[1761932932572,3.6814563,3824.3,3824.2,0.00218005]
[1761932932868,4.50076587,3824.3,3824.2,0.00218005]
[1761932933070,0.47105,3823.5,3823.0,3.2078]
[1761932933266,0.47105,3823.5,3823.2,0.47108]
[1761932933468,0.1379,3823.2,3823.0,3.2078]
[1761932933667,0.60898,3823.2,3822.6,8.4308]
[1761932933975,1.31544,3823.8,3823.0,0.4711]
[1761932934159,0.5943734,3823.7,3823.0,4.38800083]
[1761932934359,0.60891,3823.8,3823.5,0.47104]
[1761932934564,0.8193221,3823.7,3823.0,3.21023083]
[1761932934774,0.47105,3823.5,3823.1,9.311]
[1761932934975,0.1379,3823.8,3823.1,9.311]
[1761932935173,0.59444505,3823.7,3823.6,0.1623]
[1761932935377,0.47097,3824.1,3824.0,0.1623]
[1761932936281,3.2105063,3824.3,3824.0,0.1623]
[1761932936478,3.2105063,3824.3,3823.5,3.2078]
[1761932936773,0.47099,3824.0,3823.7,0.47101]
[1761932936976,0.47099,3824.0,3823.5,3.2078]
[1761932937169,0.471,3823.9,3823.6,0.47103]
[1761932937569,0.47103,3823.7,3823.5,3.2078]
[1761932937971,1.17744,3824.1,3823.5,3.2078]
[1761932938267,0.59456125,3824.0,3823.5,3.2078]
[1761932938471,0.471,3823.9,3823.8,0.1623]
[1761932939565,0.1379,3823.8,3823.5,3.2078]
[1761932939775,0.47103,3823.7,3823.5,3.2078]
[1761932940277,0.69593,3823.6,3823.5,3.2078]
[1761932940476,0.60899,3823.2,3823.1,3.2078]
[1761932940673,0.1379,3823.2,3823.1,3.2078]
[1761932940873,0.60892,3823.8,3823.4,0.47105]
[1761932941179,0.60892,3823.8,3823.6,0.1623]
[1761932941180,0.59507141,3823.7,3823.6,0.1623]
[1761932941377,1.06609141,3823.7,3823.6,0.1623]
[1761932941580,0.59507141,3823.7,3823.6,0.1623]
[1761932941776,0.47106,3823.5,3823.3,0.47107]
[1761932941973,0.47106,3823.5,3823.2,0.47108]
[1761932942172,0.59626924,3823.4,3823.3,0.47107]
[1761932942879,0.47099,3824.0,3823.7,0.63332]
[1761932943171,0.47099,3824.0,3823.3,0.47107]
[1761932943172,0.59622217,3823.9,3823.8,0.6333]
[1761932944967,0.4736563,3824.3,3824.1,0.47097]
[1761932945182,0.596972,3824.2,3824.1,0.47097]
[1761932945372,0.596972,3824.2,3824.1,0.63327]
[1761932946180,0.596972,3824.2,3824.1,0.1623]
[1761932946473,0.47098,3824.0,3823.8,0.47101]
[1761932946679,0.596972,3823.9,3823.8,0.63331]
[1761932946979,0.0027063,3824.3,3824.2,0.47096]
[1761932947165,0.0027063,3824.3,3824.2,9.77996]
[1761932947370,0.59971324,3824.3,3824.2,9.94226]
[1761932947670,0.61196,3825.0,3824.8,0.47089]
[1761932947874,0.59689105,3824.9,3824.8,0.63049]
[1761932948091,0.59689105,3824.9,3824.8,13.14729]
[1761932948271,3.2078,3825.5,3824.8,12.5168]
[1761932948585,0.69582,3824.5,3824.4,0.20578518]
[1761932948776,0.60876,3825.0,3824.4,0.1596]
[1761932948982,0.60876,3825.0,3824.8,0.1596]
[1761932948983,0.59644617,3824.9,3824.8,0.1596]
[1761932949470,3.21035646,3825.5,3825.0,0.1596]
[1761932949682,0.59625356,3825.4,3825.3,0.47082]
[1761932949983,0.59625356,3825.4,3825.3,0.63042]
[1761932950177,0.59625356,3825.4,3825.3,0.1596]
[1761932950481,0.2367,3825.2,3825.1,9.308]
[1761932950783,0.00255646,3825.5,3825.1,9.308]
[1761932950984,0.59585661,3825.4,3825.3,0.63041]
[1761932951479,0.47083,3825.3,3825.1,9.308]
[1761932951681,0.47084,3825.2,3825.1,9.308]
[1761932952183,3.21035646,3825.5,3825.1,9.308]
[1761932952384,0.59543695,3825.4,3825.3,0.63042]
[1761932952591,0.00255646,3825.5,3825.4,0.63041]
[1761932953280,0.4707,3826.3,3826.0,0.47073]
[1761932953485,0.59500378,3826.2,3826.1,0.157]
[1761932953668,0.59499802,3826.2,3826.1,0.157]
[1761932953870,0.47073,3826.1,3826.0,9.307]
[1761932954373,0.47332689,3826.1,3826.0,9.30912325]
[1761932955577,0.71002689,3826.1,3826.0,0.00212325]
[1761932955777,0.00259689,3826.1,3826.0,0.15912325]
[1761932955985,8.2805693,3826.7,3826.6,0.157]
[1761932956284,8.2805693,3826.7,3826.6,8.219]
[1761932956483,8.2805693,3826.7,3826.6,8.062]
[1761932956674,8.7512193,3826.7,3826.6,8.062]
[1761932957182,8.2805693,3826.7,3826.3,3.2078]
[1761932957377,0.70738,3826.5,3826.4,9.305]
[1761932957882,0.47068,3826.5,3826.4,9.305]
[1761932958477,0.47073,3826.1,3826.0,0.00212325]
[1761932958681,0.68633,3826.1,3826.0,0.00212325]
[1761932958877,0.68633,3826.1,3826.0,9.30612325]
[1761932959184,3.2078,3826.6,3826.1,0.1543]
[1761932959373,0.60681,3826.2,3826.1,0.1543]
[1761932959572,0.47073,3826.1,3826.0,9.30612325]
[1761932960675,0.47073,3826.1,3826.0,0.00212325]
[1761932960973,0.47073,3826.1,3826.0,9.30512325]
[1761932962172,0.1361,3826.2,3826.0,9.30512325]
[1761932962173,0.60681,3826.2,3826.0,9.30512325]
[1761932962376,0.47073,3826.1,3826.0,9.30512325]
[1761932962578,0.1361,3826.2,3826.0,9.30512325]
[1761932962883,0.4707,3826.3,3826.1,0.1543]
[1761932963481,0.47071,3826.2,3826.1,0.1543]
[1761932964480,0.47068,3826.5,3826.0,9.30512325]
[1761932964685,3.2078,3826.6,3826.4,0.1543]
[1761932964877,3.67846,3826.6,3826.5,9.4563]
[1761932965181,3.2078,3826.6,3826.5,9.92698]
[1761932965385,8.2805693,3826.7,3826.6,0.62496]
[1761932966083,8.2805693,3826.7,3826.6,0.1543]
[1761932966300,8.2805693,3826.7,3826.5,9.302]
[1761932966301,0.68626,3826.6,3826.5,9.302]
[1761932966883,0.47073,3826.1,3826.0,3.20992325]
[1761932967082,0.1361,3826.2,3826.0,12.98266325]
[1761932967386,0.4707,3826.3,3826.2,0.1543]
[1761932967887,0.47069,3826.5,3826.4,0.1543]
[1761932968089,0.47069,3826.5,3826.4,9.4553]
[1761932968290,8.7512193,3826.7,3826.4,9.4553]
[1761932968792,0.47068,3826.5,3826.4,9.4553]
[1761932969185,0.47068,3826.5,3826.4,9.301]
[1761932969383,0.47067,3826.6,3826.4,9.77169]
[1761932969687,8.2805693,3826.7,3826.6,0.62496]
[1761932970374,0.4706,3827.1,3826.9,0.47062]
[1761932970588,0.4706,3827.1,3827.0,9.3]
[1761932971879,0.6862,3827.1,3827.0,9.3]
[1761932973584,1.27759018,3827.1,3827.0,9.3]
[1761932974085,0.47067,3826.6,3826.3,0.47069]
[1761932974284,0.47068,3826.5,3826.4,9.299]
[1761932974486,0.47073,3826.1,3826.0,3.20992325]
[1761932974790,0.60681,3826.2,3826.0,12.97965325]
[1761932975185,0.1361,3826.8,3826.0,12.50892325]
[1761932975480,0.59206526,3826.7,3826.6,0.1543]
[1761932975686,0.68626,3826.6,3826.5,9.299]
[1761932975981,0.59206526,3826.6,3826.0,3.20992325]
[1761932976187,0.59206526,3826.5,3826.1,9.299]
[1761932976390,0.4707,3826.3,3826.1,9.299]
[1761932976687,0.68633,3826.1,3826.0,3.20992325]
[1761932976896,0.68633,3826.1,3826.0,12.50892325]
[1761932977480,1.27935674,3826.1,3826.0,0.00212325]
[1761932978794,4.48715674,3826.1,3826.0,0.00212325]
[1761932979481,4.27155674,3826.1,3826.0,0.00212325]
[1761932979683,4.48715674,3826.1,3826.0,0.00212325]